bitfinex-derivatives/quotes_BTCF0:USTF0_20241109
["timestamp","ask_amount","ask_price","bid_price","bid_amount"]
[1731142019186,0.04670818,76745.0,76735.0,0.39096]
[1731142019383,0.05704599,76744.0,76740.0,0.07231789]
[1731142019592,0.04670818,76745.0,76744.0,0.065115]
[1731142019886,0.04670818,76745.0,76744.0,0.13743289]
[1731142022286,0.04670818,76745.0,76744.0,0.20201562]
[1731142022785,0.3608,76746.0,76744.0,0.23613835]
[1731142022993,0.3608,76746.0,76745.0,0.16435173]
[1731142023183,0.3608,76746.0,76745.0,0.22907362]
[1731142023992,0.0061,76761.0,76758.0,0.065103]
[1731142024207,0.3608,76767.0,76766.0,0.065097]
[1731142024399,0.3608,76767.0,76766.0,0.13741489]
[1731142024687,0.065094,76769.0,76768.0,0.065095]
[1731142024890,0.065094,76769.0,76768.0,0.11680266]
[1731142025078,0.065091,76773.0,76772.0,0.065091]
[1731142025282,0.065091,76773.0,76772.0,0.13740889]
[1731142025581,0.3608,76774.0,76773.0,0.065091]
[1731142026190,0.42589,76774.0,76773.0,0.065091]
[1731142029895,0.065091,76773.0,76772.0,0.06652145]
[1731142030195,0.065092,76771.0,76770.0,0.09212]
[1731142031705,0.065092,76771.0,76770.0,0.157213]
[1731142032589,0.3608,76774.0,76773.0,0.065091]
[1731142032590,0.42589,76774.0,76773.0,0.065091]
[1731142032897,0.3608,76774.0,76773.0,0.17749422]
[1731142037797,0.45778332,76774.0,76773.0,0.17749422]
[1731142038204,0.143674,76774.0,76773.0,0.3608]
[1731142038497,0.09698332,76774.0,76773.0,0.47320322]
[1731142038890,0.09698332,76774.0,76773.0,0.65069744]
[1731142039090,0.16747843,76774.0,76773.0,0.65069744]
[1731142039290,0.20743651,76774.0,76773.0,0.65069744]
[1731142039499,0.09698332,76774.0,76773.0,0.65069744]
[1731142039705,0.07134867,76774.0,76773.0,0.65069744]
[1731142039893,0.07134867,76774.0,76773.0,0.425891]
[1731142040206,0.07134867,76774.0,76773.0,0.53829422]
[1731142042793,0.065084,76781.0,76773.0,0.47320322]
[1731142042995,0.01967429,76780.0,76776.0,0.065088]
[1731142043195,0.065084,76781.0,76776.0,0.065088]
[1731142043395,0.066,76785.0,76780.0,0.11240322]
[1731142043598,0.066,76785.0,76770.0,0.02996375]
[1731142043599,0.3608,76782.0,76770.0,0.02996375]
[1731142043797,0.065092,76771.0,76770.0,0.02996375]
[1731142044206,0.065097,76766.0,76765.0,0.21622241]
[1731142044399,0.065097,76766.0,76765.0,0.42274563]
[1731142044700,0.10505786,76766.0,76765.0,0.42274563]
[1731142045095,0.10505786,76766.0,76765.0,0.32862563]
[1731142045710,0.20751822,76766.0,76765.0,0.21622241]
[1731142045902,0.17494659,76766.0,76765.0,0.21622241]
[1731142046499,0.14242122,76766.0,76759.0,0.07732528]
[1731142046722,0.065098,76765.0,76764.0,0.05158042]
[1731142046896,0.14242122,76766.0,76762.0,0.05158042]
[1731142047097,0.0651,76762.0,76758.0,0.06577477]
[1731142047297,0.065103,76759.0,76757.0,0.06641962]
[1731142047505,0.095903,76758.0,76757.0,0.00195363]
[1731142048006,0.095903,76758.0,76757.0,0.06649044]
[1731142048202,0.095903,76758.0,76757.0,0.10117882]
[1731142048807,0.095903,76758.0,76754.0,0.06455348]
[1731142048808,0.0308,76758.0,76754.0,0.06455348]
[1731142048995,0.065107,76754.0,76753.0,0.06455348]
[1731142049197,0.065107,76754.0,76752.0,0.06457312]
[1731142049198,0.065108,76753.0,76752.0,0.06457312]
[1731142049400,0.065109,76751.0,76750.0,0.11240322]
[1731142050401,0.3608,76754.0,76750.0,0.11240322]
[1731142050604,0.0651,76762.0,76758.0,0.065103]
[1731142050814,0.0651,76762.0,76761.0,0.11240322]
[1731142053103,0.0635,76768.0,76750.0,0.09412]
[1731142053315,0.3608,76761.0,76753.0,0.17751022]
[1731142053511,0.065106,76755.0,76753.0,0.17751022]
[1731142053711,0.065107,76754.0,76753.0,0.065107]
[1731142054013,0.098007,76754.0,76753.0,0.065107]
[1731142054206,0.06511,76751.0,76750.0,0.06511]
[1731142056002,0.06511,76750.0,76749.0,0.0640977]
[1731142056216,0.06511,76750.0,76748.0,0.14236895]
[1731142056416,0.06511,76750.0,76748.0,0.02996573]
[1731142057906,0.06511,76750.0,76747.0,0.24317124]
[1731142057907,0.0332,76753.0,76747.0,0.24317124]
[1731142058113,0.065111,76749.0,76747.0,0.24317124]
[1731142058516,0.3608,76752.0,76747.0,0.17805824]
[1731142058722,0.3608,76752.0,76748.0,0.00807807]
[1731142058723,0.065111,76749.0,76748.0,0.00807807]
[1731142059409,0.3608,76752.0,76746.0,0.3608]
[1731142059608,0.065113,76747.0,76746.0,0.3608]
[1731142060007,0.065113,76747.0,76746.0,0.36890494]
[1731142060213,0.065113,76747.0,76746.0,0.43361545]
[1731142060617,0.065113,76747.0,76746.0,0.36890494]
[1731142060911,0.31514559,76752.0,76746.0,0.63118825]
[1731142061113,0.26953548,76752.0,76749.0,0.09040081]
[1731142061320,0.065109,76751.0,76750.0,0.12078535]
[1731142063818,0.065109,76751.0,76750.0,0.22002406]
[1731142065222,0.17751222,76751.0,76750.0,0.22002406]
[1731142065917,0.66255222,76751.0,76750.0,0.22002406]
[1731142066120,0.66255222,76751.0,76750.0,0.1767013]
[1731142066426,0.66255222,76751.0,76750.0,0.09923871]
[1731142066614,0.59744322,76751.0,76750.0,0.09923871]
[1731142067422,0.66255222,76751.0,76750.0,0.09923871]
[1731142068119,0.66255222,76751.0,76745.0,0.0061]
[1731142068120,0.065114,76746.0,76745.0,0.0061]
[1731142068322,0.17751722,76746.0,76745.0,0.0061]
[1731142068823,0.56843722,76746.0,76745.0,0.0061]
[1731142072231,0.59359739,76746.0,76745.0,0.0061]
[1731142073121,0.065116,76743.0,76742.0,0.0061]
[1731142073424,0.06513,76727.0,76726.0,0.00195501]
[1731142076128,0.2108423,76730.0,76726.0,0.52227626]
[1731142076326,0.065128,76729.0,76728.0,0.11631561]
[1731142076529,0.065128,76729.0,76728.0,0.52032125]
[1731142078234,0.28309697,76730.0,76726.0,0.11827062]
[1731142078530,0.065129,76728.0,76727.0,0.51369657]
[1731142079731,0.065129,76728.0,76727.0,0.63001218]
[1731142079933,0.065129,76728.0,76727.0,0.51369657]
[1731142080238,0.065129,76728.0,76727.0,0.21824824]
[1731142080636,0.07225467,76730.0,76727.0,0.21817692]
[1731142080637,0.065128,76729.0,76727.0,0.21817692]
[1731142080937,0.065128,76729.0,76728.0,0.21817692]
[1731142082840,0.065128,76729.0,76728.0,0.57601927]
[1731142083026,0.065128,76729.0,76728.0,0.51357273]
[1731142083332,0.065128,76729.0,76728.0,0.62988834]
[1731142083529,0.065128,76729.0,76728.0,0.51357273]
[1731142083930,0.065128,76729.0,76728.0,0.62987423]
[1731142084130,0.065128,76729.0,76728.0,0.6298863]
[1731142085943,0.065128,76729.0,76728.0,0.21821583]
[1731142086441,0.13738267,76729.0,76728.0,0.35636889]
[1731142086643,0.07225467,76732.0,76728.0,0.45980717]
[1731142086938,0.07225467,76732.0,76729.0,0.35636889]
[1731142087148,0.065126,76731.0,76730.0,0.35636889]
[1731142087442,0.17770187,76731.0,76730.0,0.35636889]
[1731142088147,0.11251838,76731.0,76730.0,0.35636889]
[1731142089646,0.17764438,76731.0,76730.0,0.35636889]
[1731142090342,0.17764438,76731.0,76730.0,0.21780212]
[1731142090642,0.17764438,76731.0,76730.0,0.3554181]
[1731142091038,0.04961148,76733.0,76730.0,0.3554181]
[1731142091234,0.04961148,76733.0,76724.0,0.0122]
[1731142091235,0.065128,76729.0,76724.0,0.0122]
[1731142091432,0.065135,76721.0,76720.0,0.0122]
[1731142091636,0.065138,76717.0,76716.0,0.077339]
[1731142091842,0.065138,76717.0,76716.0,0.065139]
[1731142093049,0.065139,76716.0,76712.0,0.0122]
[1731142093239,0.065139,76716.0,76713.0,0.065141]
[1731142093433,0.065139,76716.0,76715.0,0.0301]
[1731142093642,0.09030349,76716.0,76715.0,0.0301]
[1731142095144,0.09030349,76716.0,76715.0,0.09524]
[1731142096035,0.09030349,76716.0,76715.0,0.0301]
[1731142099249,0.11257587,76720.0,76715.0,0.53757716]
[1731142099546,0.065137,76718.0,76717.0,0.12956977]
[1731142099736,0.065137,76718.0,76717.0,0.63704693]
[1731142100146,0.11252601,76720.0,76717.0,0.50747716]
[1731142100451,0.065137,76719.0,76718.0,0.50747716]
[1731142101847,0.425937,76719.0,76718.0,0.50747716]
[1731142103249,0.520137,76719.0,76718.0,0.34950702]
[1731142104845,0.520137,76719.0,76718.0,0.5034125]
[1731142105252,0.520137,76719.0,76718.0,0.34950702]
[1731142106050,0.86554448,76719.0,76718.0,0.34950702]
[1731142106348,0.89746744,76719.0,76712.0,0.0122]
[1731142106551,0.11257587,76713.0,76712.0,0.0122]
[1731142106766,0.065145,76709.0,76706.0,0.077348]
[1731142106949,0.1222153,76709.0,76706.0,0.065148]
[1731142107144,0.1222153,76709.0,76707.0,0.42643055]
[1731142107350,0.19450878,76709.0,76707.0,0.42755055]
[1731142108157,0.19450987,76709.0,76707.0,0.42755055]
[1731142108549,0.19450987,76709.0,76708.0,0.06710134]
[1731142108749,0.05707139,76709.0,76708.0,0.06710134]
[1731142111553,0.12221639,76709.0,76708.0,0.06710134]
[1731142113064,0.12221655,76709.0,76708.0,0.42790134]
[1731142113257,0.07229348,76713.0,76708.0,0.92914645]
[1731142113258,0.01320265,76713.0,76708.0,0.92914645]
[1731142113462,0.01320265,76713.0,76711.0,0.11661528]
[1731142113662,0.07834465,76713.0,76712.0,0.50124511]
[1731142113960,0.07834465,76713.0,76712.0,0.34791461]
[1731142116364,0.07834465,76713.0,76712.0,0.50016038]
[1731142116560,0.07834465,76713.0,76712.0,0.50016046]
[1731142117164,0.07834465,76713.0,76712.0,0.34791461]
[1731142117165,0.065142,76713.0,76712.0,0.34791461]
[1731142117354,0.065142,76713.0,76712.0,0.50017147]
[1731142117854,0.065142,76713.0,76712.0,0.49774884]
[1731142120453,0.065139,76716.0,76712.0,0.49774884]
[1731142120659,0.065139,76716.0,76715.0,0.06514]
[1731142120867,0.0061,76718.0,76715.0,0.34549147]
[1731142121060,0.04856677,76719.0,76716.0,0.34549147]
[1731142121367,0.06514,76715.0,76713.0,0.10469348]
[1731142121558,0.09706128,76714.0,76713.0,0.10469348]
[1731142123160,0.16220228,76714.0,76713.0,0.10469348]
[1731142123362,0.16220228,76714.0,76713.0,0.0324]
[1731142125567,0.065143,76711.0,76710.0,0.3669]
[1731142125766,0.1051332,76711.0,76710.0,0.3608]
[1731142125972,0.16220428,76711.0,76710.0,0.3608]
[1731142126468,0.23449776,76711.0,76710.0,0.3608]
[1731142126857,0.23449776,76711.0,76706.0,0.0061]
[1731142126858,0.24164824,76711.0,76706.0,0.0061]
[1731142127060,0.07229348,76707.0,76704.0,0.098049]
[1731142127264,0.065148,76705.0,76704.0,0.0329]
[1731142127471,0.16220928,76705.0,76704.0,0.0329]
[1731142128273,0.1431429,76708.0,76704.0,0.52812865]
[1731142128476,0.1431429,76708.0,76707.0,0.11676943]
[1731142128770,0.1431429,76708.0,76707.0,0.61199808]
[1731142129362,0.1431429,76708.0,76707.0,0.49522865]
[1731142129564,0.2082889,76708.0,76707.0,0.49522865]
[1731142130272,0.2082889,76708.0,76707.0,0.3439233]
[1731142132263,0.1431429,76708.0,76707.0,0.34242135]
[1731142132464,0.2082889,76708.0,76707.0,0.34242135]
[1731142132868,0.2082889,76708.0,76707.0,0.49331583]
[1731142132869,0.065146,76708.0,76707.0,0.49331583]
[1731142133271,0.09832238,76708.0,76707.0,0.49331583]
[1731142133465,0.07229348,76708.0,76707.0,0.61008526]
[1731142134573,0.13743948,76708.0,76707.0,0.61008526]
[1731142135971,0.05920625,76708.0,76707.0,0.61008526]
[1731142136371,0.065148,76705.0,76704.0,0.0329]
[1731142136573,0.12222259,76705.0,76704.0,0.0329]
[1731142136983,0.12222424,76705.0,76704.0,0.0329]
[1731142141171,0.0903168,76705.0,76704.0,0.0329]
[1731142143482,0.065148,76705.0,76704.0,0.37239662]
[1731142144985,0.065148,76705.0,76704.0,0.43754562]
[1731142145179,0.065148,76705.0,76704.0,0.37239662]
[1731142145874,0.065148,76705.0,76704.0,0.46319266]
[1731142146290,0.065148,76705.0,76704.0,0.52834166]
[1731142146780,0.065148,76705.0,76704.0,0.43754562]
[1731142147288,0.065148,76705.0,76704.0,0.37239662]
[1731142150484,0.065148,76705.0,76704.0,0.37309141]
[1731142150989,0.07229348,76707.0,76704.0,0.37309141]
[1731142150990,0.02665717,76707.0,76704.0,0.37309141]
[1731142151182,0.065148,76706.0,76705.0,0.4439914]
[1731142151386,0.065148,76706.0,76705.0,0.34019141]
[1731142151580,0.13744148,76706.0,76705.0,0.34019141]
[1731142152387,0.13744148,76706.0,76705.0,0.4439914]
[1731142153189,0.13744148,76706.0,76705.0,0.34019141]
[1731142153390,0.07229348,76706.0,76705.0,0.34019141]
[1731142154488,0.07229348,76706.0,76705.0,0.48859872]
[1731142154788,0.13744148,76706.0,76705.0,0.48866234]
[1731142155290,0.13744148,76706.0,76705.0,0.60543177]
[1731142155483,0.13744148,76706.0,76705.0,0.605472]
[1731142156090,0.20125572,76706.0,76705.0,0.605472]
[1731142156292,0.20125572,76706.0,76705.0,0.60558461]
[1731142156486,0.20125572,76706.0,76705.0,0.48870257]
[1731142156792,0.13744148,76706.0,76705.0,0.60558429]
[1731142157989,0.13744148,76706.0,76705.0,0.34019141]
[1731142158491,0.06515,76704.0,76702.0,0.0061]
[1731142158680,0.02516939,76703.0,76702.0,0.0061]
[1731142160686,0.09031939,76703.0,76702.0,0.0061]
[1731142162802,0.12222756,76703.0,76702.0,0.0061]
[1731142164599,0.06515,76703.0,76702.0,0.0061]
[1731142164803,0.12222729,76703.0,76702.0,0.0061]
[1731142165000,0.09031925,76703.0,76702.0,0.0061]
[1731142165293,0.12222784,76703.0,76702.0,0.0061]
[1731142166302,0.19452132,76703.0,76702.0,0.0061]
[1731142166598,0.06515,76703.0,76702.0,0.21291229]
[1731142172902,0.15743,76703.0,76702.0,0.21291229]
[1731142173706,0.09228,76703.0,76702.0,0.21291229]
[1731142174691,0.15743,76703.0,76702.0,0.21291229]
[1731142175395,0.11178868,76703.0,76702.0,0.21291229]
[1731142179005,0.11178868,76703.0,76702.0,0.21096778]
[1731142179302,0.11178868,76703.0,76702.0,0.3403126]
[1731142180498,0.06515,76703.0,76702.0,0.3403126]
[1731142180702,0.13744348,76703.0,76702.0,0.3403126]
[1731142181105,0.07229348,76703.0,76702.0,0.3403126]
[1731142181406,0.16937168,76703.0,76702.0,0.0061]
[1731142181601,0.23452168,76703.0,76702.0,0.0061]
[1731142183298,0.28125809,76703.0,76702.0,0.00405869]
[1731142184211,0.37353809,76703.0,76702.0,0.00405869]
[1731142188509,0.22972348,76703.0,76702.0,0.09690353]
[1731142190608,0.30201696,76703.0,76702.0,0.09690353]
[1731142190903,0.69313696,76703.0,76702.0,0.16174632]
[1731142191112,0.065154,76699.0,76698.0,0.0061]
[1731142191406,0.50538696,76699.0,76698.0,0.09321153]
[1731142192598,0.57054096,76699.0,76698.0,0.09321153]
[1731142193412,0.59400263,76699.0,76698.0,0.09321153]
[1731142194611,0.065158,76694.0,76693.0,0.0061]
[1731142194811,0.065161,76690.0,76689.0,0.0061]
[1731142195011,0.065165,76686.0,76685.0,0.0332]
[1731142195220,0.065165,76686.0,76685.0,0.14473384]
[1731142195221,0.20975196,76686.0,76685.0,0.14473384]
[1731142195421,0.13745848,76686.0,76685.0,0.14473384]
[1731142195610,0.13745848,76686.0,76685.0,0.0332]
[1731142195805,0.065167,76683.0,76678.0,0.0061]
[1731142196021,0.20975396,76683.0,76682.0,0.11200474]
[1731142196312,0.07229348,76683.0,76682.0,0.11200474]
[1731142196514,0.12938757,76683.0,76682.0,0.00195604]
[1731142196829,0.16939389,76683.0,76682.0,0.00195604]
[1731142197313,0.12938757,76683.0,76682.0,0.00195604]
[1731142197709,0.19455457,76683.0,76682.0,0.00195604]
[1731142200311,0.23456209,76683.0,76682.0,0.00195604]
[1731142200617,0.59536209,76683.0,76682.0,0.00195604]
[1731142201417,0.59536846,76683.0,76682.0,0.00195604]
[1731142202514,0.5953685,76683.0,76682.0,0.00195604]
[1731142203314,0.55535902,76683.0,76682.0,0.00195604]
[1731142203517,0.49826048,76683.0,76682.0,0.11171217]
[1731142203722,0.45260526,76683.0,76682.0,0.11171217]
[1731142204331,0.53202522,76683.0,76678.0,0.0061]
[1731142204523,0.06517,76680.0,76674.0,0.0061]
[1731142204717,0.065178,76670.0,76669.0,0.0061]
[1731142204913,0.065182,76666.0,76665.0,0.0392]
[1731142205223,0.065182,76666.0,76665.0,0.0331]
[1731142205627,0.20976896,76666.0,76665.0,0.0331]
[1731142206019,0.14458696,76666.0,76661.0,0.09071124]
[1731142206221,0.07229348,76666.0,76663.0,0.09070061]
[1731142206420,0.07229348,76665.0,76661.0,0.09070061]
[1731142206621,0.07229348,76665.0,76660.0,0.09070061]
[1731142206825,0.065187,76660.0,76656.0,0.18150256]
[1731142207120,0.07229348,76657.0,76656.0,0.06541158]
[1731142207324,0.07229348,76657.0,76656.0,0.12511235]
[1731142207924,0.065188,76659.0,76656.0,0.19740583]
[1731142208121,0.0061,76661.0,76660.0,0.065187]
[1731142208427,0.0061,76661.0,76660.0,0.13748048]
[1731142209612,0.0061,76661.0,76660.0,0.22776079]
[1731142210926,0.0061,76661.0,76660.0,0.35266994]
[1731142211125,0.0061,76664.0,76660.0,0.28748294]
[1731142211322,0.4599,76668.0,76662.0,0.3608]
[1731142211518,0.45922,76668.0,76665.0,0.07229348]
[1731142211838,0.065181,76667.0,76666.0,0.0315]
[1731142219022,0.14458696,76667.0,76662.0,0.42667411]
[1731142219230,0.07229348,76663.0,76661.0,0.05178029]
[1731142219431,0.065186,76661.0,76660.0,0.05178029]
[1731142219728,0.065186,76661.0,76654.0,0.0061]
[1731142219729,0.065188,76659.0,76658.0,0.05178029]
[1731142219932,0.13748148,76659.0,76658.0,0.05178029]
[1731142220334,0.065191,76655.0,76654.0,0.06467411]
[1731142220534,0.13748448,76655.0,76654.0,0.15508768]
[1731142220936,0.07229348,76655.0,76652.0,0.09487411]
[1731142221331,0.065193,76654.0,76652.0,0.09487411]
[1731142222229,0.07229348,76655.0,76652.0,0.09487411]
[1731142222432,0.065193,76653.0,76652.0,0.09487411]
[1731142222737,0.065193,76653.0,76652.0,0.18503657]
[1731142223231,0.065193,76653.0,76652.0,0.12036246]
[1731142225730,0.065193,76653.0,76652.0,0.19265594]
[1731142226727,0.07229348,76658.0,76652.0,0.42493719]
[1731142226936,0.065191,76655.0,76654.0,0.09072298]
[1731142227132,0.065191,76655.0,76654.0,0.41316669]
[1731142227337,0.065191,76655.0,76654.0,0.32244371]
[1731142227738,0.065191,76655.0,76654.0,0.41318054]
[1731142228434,0.065191,76655.0,76654.0,0.32244371]
[1731142229034,0.065191,76655.0,76654.0,0.41319951]
[1731142229340,0.065191,76655.0,76654.0,0.32244371]
[1731142229838,0.065191,76655.0,76654.0,0.3212952]
[1731142230039,0.065191,76655.0,76654.0,0.41207637]
[1731142230436,0.065191,76655.0,76654.0,0.19694894]
[1731142230640,0.065191,76655.0,76654.0,0.28773011]
[1731142230838,0.065191,76655.0,76654.0,0.19694894]
[1731142231235,0.065191,76655.0,76646.0,0.00337869]
[1731142231236,0.065198,76647.0,76646.0,0.00337869]
[1731142231436,0.59061148,76647.0,76646.0,0.00337869]
[1731142231639,0.98201148,76647.0,76646.0,0.00337869]
[1731142232336,0.98201148,76647.0,76646.0,6.9e-07]
[1731142232537,0.98201148,76647.0,76646.0,0.06487594]
[1731142232741,0.909718,76647.0,76638.0,0.07785832]
[1731142233044,0.43309348,76639.0,76637.0,0.01220932]
[1731142233233,0.065213,76629.0,76628.0,0.00195758]
[1731142233432,0.13750648,76629.0,76628.0,0.00195758]
[1731142235842,0.065219,76622.0,76621.0,0.00068]
[1731142236840,0.426019,76622.0,76621.0,0.00068]
[1731142241738,0.3608,76622.0,76621.0,0.00068]
[1731142242143,0.426019,76622.0,76621.0,0.00068]
[1731142243037,0.38032744,76622.0,76621.0,0.00068]
[1731142248347,0.38032744,76622.0,76621.0,0.05172513]
[1731142248557,0.065223,76617.0,76616.0,0.0061]
[1731142248853,0.065228,76612.0,76611.0,0.0385]
[1731142249152,0.065228,76612.0,76611.0,0.0324]
[1731142255651,0.065228,76612.0,76611.0,0.21049839]
[1731142256756,0.0061,76614.0,76611.0,0.40236246]
[1731142256953,0.0061,76614.0,76612.0,0.19186407]
[1731142257156,0.071326,76614.0,76613.0,0.19186407]
[1731142258059,0.0061,76618.0,76613.0,0.19186407]
[1731142258255,0.09408,76619.0,76614.0,0.19186407]
[1731142258460,0.065222,76618.0,76615.0,0.19103174]
[1731142258664,0.065223,76617.0,76616.0,0.19103174]
[1731142259251,0.065223,76617.0,76616.0,0.08715104]
[1731142260356,0.065223,76617.0,76616.0,0.19084388]
[1731142260648,0.065223,76617.0,76616.0,0.31134619]
[1731142261354,0.065222,76618.0,76616.0,0.19099417]
[1731142261548,0.16654363,76619.0,76617.0,0.41515195]
[1731142261754,0.19260148,76619.0,76618.0,0.31158081]
[1731142262358,0.19260148,76619.0,76618.0,0.41515195]
[1731142263460,0.19260148,76619.0,76618.0,0.31158081]
[1731142263663,0.19260148,76619.0,76618.0,0.31088047]
[1731142265562,0.13768563,76619.0,76618.0,0.31088047]
[1731142265766,0.23176563,76619.0,76618.0,0.31088047]
[1731142268765,0.13768563,76619.0,76618.0,0.31088047]
[1731142270861,0.13768563,76619.0,76618.0,0.22597828]
[1731142271061,0.32120844,76622.0,76618.0,0.26476092]
[1731142271263,0.071316,76626.0,76619.0,0.19229729]
[1731142271464,0.071316,76626.0,76625.0,0.07246363]
[1731142271670,0.065216,76626.0,76625.0,0.26476092]
[1731142271879,0.09396118,76626.0,76625.0,0.07246363]
[1731142272173,0.02875152,76626.0,76625.0,0.07246363]
[1731142278768,0.159295,76627.0,76625.0,0.23848558]
[1731142278973,0.159295,76627.0,76626.0,0.08793526]
[1731142285974,0.065216,76626.0,76625.0,0.07246363]
[1731142286176,0.3095416,76626.0,76625.0,0.07246363]
[1731142286975,0.16618369,76626.0,76625.0,0.07246363]
[1731142287977,0.10096769,76626.0,76624.0,0.39442]
[1731142288184,0.0934111,76625.0,76624.0,0.3933]
[1731142288379,0.23864732,76625.0,76624.0,0.3933]
[1731142291172,0.16618369,76625.0,76624.0,0.3933]
[1731142291774,0.065216,76625.0,76624.0,0.3933]
[1731142291970,0.12618888,76625.0,76624.0,0.3933]
[1731142292174,0.26955989,76625.0,76624.0,0.3933]
[1731142292383,0.30959663,76625.0,76624.0,0.3933]
[1731142292580,0.16622562,76625.0,76624.0,0.28887392]
[1731142293987,0.065216,76625.0,76624.0,0.45616242]
[1731142294685,0.065216,76625.0,76624.0,0.45616235]
[1731142295185,0.065216,76625.0,76624.0,0.37807566]
[1731142295386,0.065216,76625.0,76624.0,0.45605059]
[1731142295689,0.065216,76625.0,76624.0,0.37807566]
[1731142297186,0.065216,76625.0,76624.0,0.45606462]
[1731142297576,0.065216,76625.0,76624.0,0.37807566]
[1731142297981,0.065216,76625.0,76624.0,0.45607453]
[1731142298176,0.065216,76625.0,76624.0,0.45632961]
[1731142298582,0.065216,76625.0,76624.0,0.37833074]
[1731142300393,0.065216,76625.0,76624.0,0.12195682]
[1731142300988,0.065216,76625.0,76624.0,0.0325]
[1731142300989,0.13226371,76625.0,76624.0,0.0325]
[1731142301192,0.16420589,76625.0,76624.0,0.0325]
[1731142302993,0.21098922,76625.0,76624.0,0.01936897]
[1731142303288,0.16420589,76625.0,76624.0,0.01936897]
[1731142307191,0.065217,76624.0,76623.0,0.0061]
[1731142307393,0.16420689,76624.0,76623.0,0.0061]
[1731142308898,0.16433876,76624.0,76623.0,0.0061]
[1731142309096,0.065217,76624.0,76623.0,0.20199445]
[1731142312004,0.01952946,76624.0,76623.0,0.20199445]
[1731142312294,0.065217,76624.0,76623.0,0.20199445]
[1731142313693,0.065217,76624.0,76623.0,0.202198]
[1731142321905,0.065217,76624.0,76623.0,0.20252792]
[1731142324102,0.09209406,76624.0,76623.0,0.0061]
[1731142324411,0.16407394,76624.0,76623.0,0.0061]
[1731142325298,0.16407394,76624.0,76623.0,0.00366022]
[1731142326498,0.16417483,76624.0,76623.0,0.00366022]
[1731142331107,0.065217,76624.0,76623.0,0.09295803]
[1731142331405,0.065217,76624.0,76623.0,0.00366022]
[1731142332123,0.065217,76624.0,76623.0,0.09295811]
[1731142332804,0.065217,76624.0,76623.0,0.00366022]
[1731142336807,0.489637,76624.0,76623.0,0.00366022]
[1731142338617,0.098117,76624.0,76623.0,0.00366022]
[1731142338812,0.17058063,76624.0,76623.0,0.00366022]
[1731142339133,0.489637,76624.0,76623.0,0.00366022]
[1731142340711,0.56210063,76624.0,76623.0,0.00366022]
[1731142341703,0.92290063,76624.0,76623.0,0.00366022]
[1731142341920,0.87093338,76624.0,76623.0,0.00366022]
[1731142342307,0.94339701,76624.0,76623.0,0.00366022]
[1731142342603,0.87093338,76624.0,76623.0,0.00366022]
[1731142343205,0.94339701,76624.0,76623.0,0.00366022]
[1731142343617,1.08896641,76624.0,76623.0,0.0007312]
[1731142343811,1.06847003,76624.0,76623.0,0.0007312]
[1731142344916,1.02168024,76624.0,76623.0,0.0007312]
[1731142346518,1.0684724,76624.0,76623.0,0.0007312]
[1731142346719,0.92290063,76624.0,76623.0,0.09052966]
[1731142347323,0.92290063,76624.0,76623.0,0.15553741]
[1731142347825,0.92290063,76624.0,76623.0,0.09052966]
[1731142348317,0.92290063,76624.0,76623.0,0.15553073]
[1731142348914,0.92290063,76624.0,76623.0,0.09052966]
[1731142348915,0.850437,76624.0,76623.0,0.09052966]
[1731142350015,0.458917,76624.0,76623.0,0.09052966]
[1731142350315,0.426017,76624.0,76623.0,0.09052966]
[1731142350616,0.518497,76624.0,76623.0,0.09052966]
[1731142351909,0.518497,76624.0,76623.0,0.16859237]
[1731142352322,0.98248063,76624.0,76623.0,0.16859237]
[1731142352821,0.98248063,76624.0,76623.0,0.09052966]
[1731142353713,0.98248063,76624.0,76623.0,0.03973435]
[1731142355125,0.98248063,76624.0,76623.0,0.0007312]
[1731142355712,1.28248063,76624.0,76623.0,0.0007312]
[1731142355917,1.28248063,76624.0,76623.0,0.03973329]
[1731142356417,1.28248063,76624.0,76623.0,0.0007312]
[1731142356726,1.4777681,76624.0,76623.0,0.0007312]
[1731142356917,1.4777681,76624.0,76623.0,0.03973329]
[1731142357325,1.1777681,76624.0,76623.0,0.03973329]
[1731142359222,1.19763811,76624.0,76623.0,0.03973329]
[1731142359427,1.19763811,76624.0,76623.0,0.0007312]
[1731142360933,0.53836701,76624.0,76623.0,0.0007312]
[1731142361318,0.61083064,76624.0,76623.0,0.0007312]
[1731142361821,0.065228,76613.0,76599.0,0.0312]
[1731142362024,0.68911039,76612.0,76603.0,0.07246363]
[1731142362223,0.2374125,76611.0,76603.0,0.07246363]
[1731142362538,0.09813876,76610.0,76603.0,0.07246363]
[1731142362722,0.24151462,76609.0,76603.0,0.07246363]
[1731142363825,0.09813876,76609.0,76603.0,0.07246363]
[1731142364629,0.16336876,76609.0,76603.0,0.07246363]
[1731142364828,0.25584876,76609.0,76607.0,0.0318]
[1731142365032,0.065231,76608.0,76607.0,0.0318]
[1731142365235,0.16336976,76608.0,76607.0,0.0318]
[1731142368538,0.1233235,76608.0,76607.0,0.0318]
[1731142368734,0.07284473,76609.0,76607.0,0.23005691]
[1731142368929,0.07284473,76609.0,76608.0,0.19825691]
[1731142370339,0.065231,76608.0,76607.0,0.12291161]
[1731142370535,0.065231,76608.0,76607.0,0.31995051]
[1731142370941,0.065231,76608.0,76607.0,0.44434447]
[1731142371126,0.065231,76608.0,76607.0,0.35323286]
[1731142372032,0.01953378,76608.0,76607.0,0.49485777]
[1731142372239,0.07284473,76609.0,76607.0,0.49485777]
[1731142372451,0.13807473,76609.0,76608.0,0.46305777]
[1731142373426,0.13807473,76609.0,76608.0,0.32143286]
[1731142375442,0.15763,76609.0,76608.0,0.32143286]
[1731142375845,0.518428,76612.0,76611.0,0.065228]
[1731142376144,0.157628,76612.0,76611.0,0.45912449]
[1731142376344,0.157628,76612.0,76611.0,0.52741]
[1731142376545,0.157628,76612.0,76611.0,0.38666086]
[1731142376747,0.25686637,76612.0,76611.0,0.065228]
[1731142378347,0.21682323,76612.0,76611.0,0.065228]
[1731142378542,0.25686617,76612.0,76611.0,0.065228]
[1731142378937,0.21682323,76612.0,76611.0,0.065228]
[1731142379840,0.12442323,76612.0,76611.0,0.065228]
[1731142380038,0.12442323,76612.0,76611.0,0.13769163]
[1731142380232,0.12442323,76612.0,76611.0,0.52929163]
[1731142380233,0.00929523,76612.0,76611.0,0.52929163]
[1731142380453,0.0061,76614.0,76613.0,0.065227]
[1731142380661,0.0061,76614.0,76613.0,0.426027]
[1731142380948,0.0061,76616.0,76613.0,0.426027]
[1731142381149,0.0061,76621.0,76615.0,0.07246363]